Cogmind - Beta 9 @@@ ROGUE MODE // 2019.10.22 @ 22:51:01 Player: BOBIT Result: Destroyed by G-47 Trooper with Particle Gun Performance ------------- Evolutions (1) 500 Regions Visited (3) 600 Robots Destroyed (1) 5 Value Destroyed (1) 1 Prototype IDs (2) 40 Alien Tech Used (0) 0 Bonus (0) 0 TOTAL SCORE: 1146 Bonus ------- None Cogmind --------- Core Integrity 0/400 Matter 175/300 Energy 98/100 System Corruption 0% Temperature Cool (9) Location -9/Materials Parts ------- Power (1) Propulsion (3) Utility (3) Improved Signal Interpreter Weapon (2) Inventory (4) Large Battery (300) Large Battery (300) High-capacity Battery (400) Datajack Peak State ------------ Power Light Ion Engine Propulsion Wheel Compact Wheel Utility Small Storage Unit Weapon Small Laser Light Assault Rifle Inventory (Empty) [Rating: 6] Favorites ----------- Power Light Ion Engine Engine Light Ion Engine Propulsion Hover Unit Wheel Wheel Hover Unit Hover Unit Flight Unit Flight Unit Utility Terrain Scanner Device Terrain Scanner Storage Small Storage Unit Processor Improved Signal Interpreter Weapon Datajack Energy Gun Medium Laser Energy Cannon Particle Cannon Ballistic Gun Light Assault Rifle Special Melee Weapon Datajack Build | -11 -10 -10 -9 ------- Run | Scr Mat Min Mat Slots Evolved 2 | . . . 2 Power . | . . . . Propulsion 1 | . . . 1 Utility 1 | . . . 1 Weapon . | . . . . Parts Attached 19 | 6 6 2 5 Power 1 | 1 . . . Engine 1 | 1 . . . Core . | . . . . Reactor . | . . . . Propulsion 6 | 2 1 1 2 Treads . | . . . . Leg . | . . . . Wheel 2 | 2 . . . Hover 3 | . 1 1 1 Flight 1 | . . . 1 Utility 5 | 1 3 . 1 Device 1 | . 1 . . Storage 3 | 1 2 . . Processor 1 | . . . 1 Hackware . | . . . . Protection . | . . . . Artifact . | . . . . Weapon 7 | 2 2 1 2 Energy Gun 3 | 1 . 1 1 Energy Cannon 1 | . . . 1 Ballistic Gun 1 | 1 . . . Ballistic Cannon . | . . . . Launcher . | . . . . Special Weapon . | . . . . Impact Weapon . | . . . . Slashing Weapon . | . . . . Piercing Weapon . | . . . . Special Melee Weapon 2 | . 2 . . Unidentified Prototypes . | . . . . Parts Lost 8 | . . . 8 Power 1 | . . . 1 Propulsion 4 | . . . 4 Utility 1 | . . . 1 Weapon 2 | . . . 2 Highest Loss Streak 6 | . . . 6 Average Slot Usage (%) 58 | . 66 80 33 Engine 9 | . 14 14 1 Wheel 4 | . 10 . . Hover 12 | . 7 25 8 Device 7 | . 3 14 6 Storage 3 | . 8 . . Energy Gun 9 | . 7 11 9 Ballistic Gun 2 | . 7 . . Special Melee Weapon 7 | . 7 14 2 Naked Turns 7 | . . . 7 Heaviest Build 11 | 9 11 7 7 Greatest Support 26 | 26 26 12 12 Greatest Overweight (x) 2 | 2 2 . 1 Average Overweight (x) . | . . . . Largest Inventory Capacity 6 | 6 6 4 4 Average Capacity 4 | 5 4 4 4 Most Carried 6 | 6 6 4 4 Average Carried 4 | 2 4 4 3 Final Capacity 4 | . . . 4 Final Carried 4 | . . . 4 Class Distribution -------------------- 100% | Mutant Dominant Class ---------------- Mutant | -10/Materials Mutant | -10/Mines Mutant | -9/Materials Resources | -11 -10 -10 -9 ----------- Run | Scr Mat Min Mat Matter Collected 209 | 185 . 24 . Remotely . | . . . . Salvage Created 20 | . . 20 . Parts 2 | . . 2 . Haulers Intercepted . | . . . . Recyclers Shooed . | . . . . Parts Field Recycled . | . . . . Retrieved Matter . | . . . . Parts Self-Destructed . | . . . . Prevented . | . . . . Kills | -11 -10 -10 -9 ------- Run | Scr Mat Min Mat Combat Hostiles Destroyed . | . . . . Classes Destroyed 1 | . . 1 . Worker 1 | . . 1 . Best Kill Streak 1 | . . 1 . Combat Bots Only . | . . . . Max Kills in Single Turn 1 | . . 1 . Gunslinging . | . . . . Exploded . | . . . . Melee . | . . . . Uniques/NPCs Destroyed . | . . . . Combat | -11 -10 -10 -9 -------- Run | Scr Mat Min Mat Damage Taken 791 | . 31 56 704 Core 472 | . 31 29 412 Absorbed by Shields . | . . . . Core Remaining (%) 88 | 100 . 76 . Volleys Fired 6 | . 2 2 2 Largest 2 | . 2 1 1 Hottest 68 | . 60 50 68 Shots Fired 8 | . 4 2 2 Gun 6 | . 4 2 . Cannon 2 | . . . 2 Launcher . | . . . . Special . | . . . . Kinetic 2 | . 2 . . Thermal 6 | . 2 2 2 Explosive . | . . . . Electromagnetic . | . . . . Robot Hit Streak 3 | . 2 3 . Robot Miss Streak 2 | . 1 . 2 Penetration Max . | . . . . Secondary Targets . | . . . . Shots Hit Robots 12 | . 6 5 1 Core Hits 4 | . 1 1 2 Critical Hits . | . . . . Critical Kills . | . . . . Critical Parts Destroyed . | . . . . Melee Attacks 7 | . 3 3 1 Impact . | . . . . Slashing . | . . . . Piercing . | . . . . Sneak Attacks 7 | . 3 3 1 Combat Hostiles . | . . . . Follow-up Attacks . | . . . . Damage Inflicted 54 | . 16 26 12 Guns 42 | . 16 26 . Cannons . | . . . . Explosions . | . . . . Melee . | . . . . Ramming 12 | . . . 12 Kinetic 6 | . 6 . . Thermal 36 | . 10 26 . Explosive . | . . . . Electromagnetic . | . . . . Impact . | . . . . Slashing . | . . . . Piercing . | . . . . Highest Corruption . | . . . . Average Corruption . | . . . . Corruption Purged . | . . . . Overload Shots . | . . . . Overflow Damage . | . . . . Projectiles . | . . . . Explosions . | . . . . Melee . | . . . . Knockbacks . | . . . . Impact . | . . . . Kinetic . | . . . . Secondary . | . . . . Self-Inflicted Damage 5 | . . . 5 Shots . | . . . . Rammed 5 | . . . 5 Targets Rammed 5 | . . . 5 Kicked . | . . . . Crushed . | . . . . Highest Temperature 40 | . 40 16 24 Average Temperature 17 | . 24 12 15 Received Heat Transfer 210 | . 9 30 171 Siege Activations . | . . . . Robots Corrupted . | . . . . Combat Hostiles . | . . . . Parts Fried . | . . . . Impact Corruptions . | . . . . Robots Melted . | . . . . Combat Hostiles . | . . . . Parts Melted . | . . . . Heat Transferred 99 | . 25 74 . Parts Sabotaged . | . . . . Parts Stolen . | . . . . Parts Stripped . | . . . . Power Chain Reactions . | . . . . Missiles Intercepted . | . . . . Alert | -11 -10 -10 -9 ------- Run | Scr Mat Min Mat Peak Influence 32 | . 31 32 12 Average Influence 13 | . 16 27 4 Maximum Alert Level . | . . . . Low Security (%) 100 | . . . . Level 1 . | . . . . Level 2 . | . . . . Level 3 . | . . . . Level 4 . | . . . . Level 5 . | . . . . High Security . | . . . . Max Security . | . . . . Squads Dispatched . | . . . . Investigation . | . . . . Extermination . | . . . . Reinforcement . | . . . . Assault . | . . . . Garrison . | . . . . Intercept . | . . . . Construction Impeded . | . . . . Haulers Reinforced . | . . . . Stealth | -11 -10 -10 -9 --------- Run | Scr Mat Min Mat Distress Signals 1 | . . . 1 Communications Jammed . | . . . . Distress Signals . | . . . . Times Spotted 19 | . 3 4 12 Peak Tracking Total 11 | . 2 2 11 Tactical Retreats 3 | . . 2 1 Traps | -11 -10 -10 -9 ------- Run | Scr Mat Min Mat Traps Triggered 1 | . 1 . . Indirectly . | . . . . Trap Hack Attempts . | . . . . Triggered . | . . . . Disarmed 5 | . 5 . . Reprogrammed . | . . . . Reused . | . . . . Traps Extracted . | . . . . Installed . | . . . . Triggered . | . . . . Machines | -11 -10 -10 -9 ---------- Run | Scr Mat Min Mat Machines Disabled . | . . . . Max in Single Turn . | . . . . Machines Sabotaged . | . . . . Garrisons Compromised . | . . . . Overloaded Fab Kills . | . . . . Fab Network Shutdowns . | . . . . Hacking | -11 -10 -10 -9 --------- Run | Scr Mat Min Mat Machines Accessed 5 | . 5 . . Terminals 3 | . 3 . . Fabricators . | . . . . Repair Stations . | . . . . Recycling Units 2 | . 2 . . Scanalyzers . | . . . . Garrison Access . | . . . . Total Hacks 19 | . 19 . . Successful 9 | . 9 . . Failed 10 | . 10 . . Catastrophic 2 | . 2 . . Database Lockouts . | . . . . Manual . | . . . . Terminals 12 | . 12 . . Fabricators . | . . . . Repair Stations . | . . . . Recycling Units 7 | . 7 . . Scanalyzers . | . . . . Garrison Access . | . . . . Terminal Hacks 5 | . 5 . . Prototype ID Bank 1 | . 1 . . Branch Access Points 1 | . 1 . . Emergency Access Points 1 | . 1 . . Disarm Traps 1 | . 1 . . Maintenance Status 1 | . 1 . . Fabricator Hacks . | . . . . Repair Station Hacks . | . . . . Recycling Unit Hacks 4 | . 4 . . Process 1 | . 1 . . Report Inventory 2 | . 2 . . Retrieve Matter 1 | . 1 . . Scanalyzer . | . . . . Garrison Access Hacks . | . . . . Unauthorized Hacks . | . . . . Terminals . | . . . . Fabricators . | . . . . Repair Stations . | . . . . Recycling Units . | . . . . Scanalyzers . | . . . . Garrison Access . | . . . . Data Cores Recovered . | . . . . Used . | . . . . Hacking Detections 5 | . 5 . . Full Trace Events 1 | . 1 . . Feedback Events . | . . . . Feedback Blocked . | . . . . Robot Schematics Acquired . | . . . . Robots Built . | . . . . Matter . | . . . . Time . | . . . . Total Robot Build Rating . | . . . . Part Schematics Acquired . | . . . . Parts Built . | . . . . Matter . | . . . . Time . | . . . . Total Part Build Rating . | . . . . Parts Repaired . | . . . . Time . | . . . . Parts Recycled . | . . . . Recycled Matter 24 | . 24 . . Retrieved Matter . | . . . . Retrieved Components . | . . . . Parts Scanalyzed . | . . . . Part Schematics Acquired . | . . . . Parts Damaged . | . . . . Bothacking | -11 -10 -10 -9 ------------ Run | Scr Mat Min Mat Used RIF Installer . | . . . . Robots Hacked 5 | . 2 2 1 Non-combat 5 | . 2 2 1 Combat . | . . . . Robot Hacks Applied 6 | . 3 2 1 parse_system 1 | . . 1 . no_distress 2 | . . 1 1 find_recycling 3 | . 3 . . Relay Couplers Released . | . . . . Robots Rewired . | . . . . Allies Hacked . | . . . . Hacks Repelled . | . . . . Allies | -11 -10 -10 -9 -------- Run | Scr Mat Min Mat Total Allies . | . . . . Largest Group . | . . . . Highest-Rated Group . | . . . . Highest-Rated Ally . | . . . . Total Orders . | . . . . Ally Attacks . | . . . . Total Damage . | . . . . Kills . | . . . . Allies Corrupted . | . . . . Allies Melted . | . . . . Intel | -11 -10 -10 -9 ------- Run | Scr Mat Min Mat Robot Analysis Total . | . . . . Derelict Logs Recovered 1 | . . 1 . Drone Launches . | . . . . Drone Recoveries . | . . . . Exploration | -11 -10 -10 -9 ------------- Run | Scr Mat Min Mat Turns Passed 552 | 81 179 134 158 Spaces Moved 720 | 72 187 208 253 Core 81 | 21 7 . 53 Treads . | . . . . Legs . | . . . . Wheels 124 | 51 73 . . Hover 454 | . 107 208 139 Flight 61 | . . . 61 Fastest Speed 40 | 50 60 56 40 Average Speed 65 | 91 79 56 53 Slowest Speed 150 | 150 150 60 100 Overloaded Moves . | . . . . Propulsion Burnouts . | . . . . Robots Hopped 5 | . . . 5 Cave-ins Triggered . | . . . . Exploration Rate (%) 27 | 3 34 54 19 Regions Visited 3 Branch Regions 1 Pre-discovered Areas . | . . . . Known Exits Taken 1 | . 1 . . Unknown Exits Taken 2 | 1 . 1 . Scrap Searched . | . . . . Spaces Dug . | . . . . Terrain Destroyed . | . . . . Melee . | . . . . Projectile . | . . . . AOE . | . . . . Actions | -11 -10 -10 -9 --------- Run | Scr Mat Min Mat Total 779 | 83 212 217 267 Wait 3 | . . 3 . Move 709 | 71 186 207 245 Hop 3 | . . . 3 Pick Up 11 | 6 3 . 2 Fast Attach 19 | 6 6 2 5 Attach . | . . . . Detach 1 | . 1 . . Swap . | . . . . Drop 15 | . 11 . 4 Fire 6 | . 2 2 2 Melee 7 | . 3 3 1 Ram 5 | . . . 5 Kick . | . . . . Crush . | . . . . Escape Stasis . | . . . . Rewire . | . . . . Trap . | . . . . Miscellaneous . | . . . . Route ------- -11/Scrapyard -10/Materials (discovered 2 exits: [*Mat] / *Min) -10/Mines -9/Materials (discovered 1 exit: Mat) History --------- Turn | Location | Event 24 | -11/Scrapyard | Discovered new exit (range 16) 82 | -11/Scrapyard | Entered Materials 190 | -10/Materials | Identified exit to Mines 200 | -10/Materials | Discovered new exit (range 15) 261 | -10/Materials | Entered Mines 305 | -10/Mines | Build established: Mutant 346 | -10/Mines | Learned location of 1 exit from Materials 390 | -10/Mines | Discovered new exit (range 10) 395 | -10/Mines | Entered Materials 395 | -9/Materials | Evolved 2 slots: Propulsion x1, Utility x1 396 | -9/Materials | Identified exit to Materials 535 | -9/Materials | Core integrity fell below 50% 547 | -9/Materials | Core integrity fell below 20% 553 | -9/Materials | Destroyed by G-47 Trooper with Particle Gun Last Messages --------------- 00487_ K-01 Serf collects debris. 00494_ Acquired Particle Cannon. 00498_ Terrain Scanner destroyed. 00498_ S-10 Pest destroyed. 00502_ Acquired Flight Unit. 00503_ K-01 Serf collects debris. 00526_ Particle Cannon destroyed. 00526_ G-34 Mercenary destroyed. 00528_ Flight Unit destroyed. 00535_ Acquired Imp. Hover Unit. 00541_ Acquired Imp. Signal Interpreter. 00543_ Slammed into S-10 Pest. 00545_ Slammed into G-34 Mercenary. 00545_ Destabilizing: Core damaged (-16). 00546_ Slammed into G-34 Mercenary. 00546_ Imp. Hover Unit destroyed. 00546_ G-34 Mercenary destroyed. 00547_ Slammed into Y-45 Defender. 00547_ Destabilizing: Core damaged (-8). 00550_ K-01 Serf collects debris. Map ----- +----------------------------------------------------+ | | | | | | | | | | | | | | | ??????????#####################??????????????????? | | ??????????# # """ #??????????????????? | | ??????????# # """ #??????????????##### | | ??????????# # """ #???????######?# | | ??????????# # #??????##!!!!### "" | | ??????????# # #??????#! !## "" | | ??????????###+#####+#### =%* #??#???#! !## "" | | ?????###/## #### #######+########## ## "" | | ?????# =%[ # "" | | ?????# * + "" | | ???????#+##""" s##/################# "" | | ??????????#"R g # !!!#?#???????# | | ??????????#""" # !!#?????????##### | | ??????????# # % !! ######????????? | | ??????????# # # #####????? | | ??????????# """ """m # # # #????? | | ??????????# """"""""" # # # #????? | | ??????????# "" "" # # # #????? | | ??????????# k @# # + #????? | | ??????????# k # # # #????? | | ??????????# """ """ ########## # #????? | | ??????????# """""""" #????????# # #??? ? | | ??????????# """"" #????????# # #???? | | ??????????# #??????#?###### #??"" | | ??????????# ############### # """ | | ??????????# + """ | | ??????????# # "" | | ??????????# ###+####+########### #??"" | | ???????#??# ###+#### #??#??# #???? | | ??????????# ## ! # """ #?????# #????? | | ??????????# ## ! # """""#?????# #????? | | ??????????# ## + """""#?????# #????? | | ???????#??# ## """ # """""#?????# ###### | | ??????????# ## """ # """ ??????# | | ??????????### # """ # #?????# | | ????????????# # #############?????# | | ????????????# # """ #????? ???????????########## | | ????????????# # """ #??????????????????????????? | | ????????????# # """ ##?????????????????????????? | | ??????? ????# # ?? #??????????????????????????? | | ????????????# ##?####??????????????????????????? | | ????????????# ???????????????????????????????? | | ????????????/ ??????????????????????????????? | +----------------------------------------------------+ Best States ------------- Heat Dissipation 28 Energy Generation 10 Energy Capacity 825 Matter Stores 225 Matter Capacity 300 Sight Range 16 Terrain Scan Range 14 Terrain Scan Density 10 Evasion (%) 62 Item Schematics ----------------- None Robot Schematics ------------------ None Fabricated ------------ Nothing Alien Tech Used ----------------- None Achievements -------------- None Challenges ------------ None Game ------ Seed PowerCloakExtractor Manual? 0 Play Time 00:11:35 Cumulative 21.5 hours Start 2019.10.22 @ 22:40:58 End 2019.10.22 @ 22:51:01 Sessions 1 Manual Loads 0 Difficulty Rogue Special Mode None Game No. 53 Rogue 53 Adventurer 0 Explorer 0 Win Type - Total 0 Types 0/0/0/0/0/0/0 Lore% 16 Gallery% 32 Achievement% 22 Wizard Run 0 Options --------- ASCII 1 Keyboard 1 Movement Numpad Keybinds 0 Fullscreen 2 Font 18/TerminusBold Map View 76x50 Tactical HUD 1 Map Filters NONE Filters NONE Steam 1 RUN: 175cf670-70ad-4233-bb84-73410088e6e9